fUSD/lending_fUSD_20251210
["ID","MTS","AMOUNT","RATE_DAILY","PERIOD"]
[398047698,1765337442153,-500.0,0.00015694,2]
[398047699,1765337442163,-500.0,0.00015694,2]
[398047700,1765337442173,-500.0,0.00015694,2]
[398047701,1765337442183,-725.88,0.00015694,2]
[398047702,1765337442192,-500.0,0.00015694,2]
[398047703,1765337442202,-535.37,0.00015694,2]
[398047704,1765337442212,-500.0,0.00015694,2]
[398047705,1765337442222,-500.0,0.00015694,2]
[398047706,1765337442231,-500.0,0.00015694,2]
[398047707,1765337442240,-500.0,0.00015694,2]
[398047708,1765337442250,-500.0,0.00015694,2]
[398047709,1765337442259,-500.0,0.00015694,2]
[398047710,1765337442270,-500.0,0.00015694,2]
[398047711,1765337442279,-500.0,0.00015694,2]
[398047712,1765337442289,-500.0,0.00015694,2]
[398047713,1765337442298,-500.0,0.00015694,2]
[398047714,1765337442308,-500.0,0.00015694,2]
[398047715,1765337442317,-500.0,0.00015694,2]
[398047716,1765337442327,-500.0,0.00015694,2]
[398047717,1765337442337,-587.2346556,0.00015694,2]
[398047718,1765337442347,-500.0,0.00015694,2]
[398047719,1765337442356,-500.0,0.00015694,2]
[398047720,1765337442366,-520.38,0.00015694,2]
[398047721,1765337442376,-1112.11,0.00015694,2]
[398047722,1765337442385,-500.0,0.00015694,2]
[398047723,1765337442395,-500.0,0.00015694,2]
[398047724,1765337442407,-500.0,0.00015694,2]
[398047725,1765337442416,-500.0,0.00015694,2]
[398047726,1765337442426,-500.0,0.00015694,2]
[398047727,1765337442435,-820.89,0.00015694,2]
[398047728,1765337442444,-500.0,0.00015694,2]
[398047729,1765337442453,-551.73,0.00015694,2]
[398047730,1765337442463,-334.30881612,0.00015694,2]
[398047731,1765337442473,-500.0,0.00015694,2]
[398047732,1765337442483,-506.5937603,0.00015694,2]
[398047733,1765337442492,-500.0,0.00015694,2]
[398047734,1765337442501,-372.45211809,0.00015694,2]
[398047735,1765337442511,-500.0,0.00015694,2]
[398047736,1765337442520,-500.0,0.00015694,2]
[398047737,1765337442530,-500.0,0.00015694,2]
[398047738,1765337442539,-557.11,0.00015694,2]
[398047739,1765337442548,-500.0,0.00015694,2]
[398047740,1765337442748,-500.0,0.00015694,2]
[398047741,1765337442758,-500.0,0.00015694,2]
[398047742,1765337442769,-500.0,0.00015694,2]
[398047743,1765337442783,-500.0,0.00015694,2]
[398047744,1765337442793,-579.04471326,0.00015694,2]
[398047745,1765337442803,-500.0,0.00015694,2]
[398047746,1765337442812,-500.0,0.00015694,2]
[398047747,1765337442822,-500.0,0.00015694,2]
[398047748,1765337442832,-500.0,0.00015694,2]
[398047749,1765337442842,-507.54772825,0.00015694,2]
[398047750,1765337442852,-500.0,0.00015694,2]
[398047751,1765337442862,-500.0,0.00015694,2]
[398047752,1765337442871,-500.0,0.00015694,2]
[398047754,1765337442880,-394.92372694,0.00015694,2]
[398047755,1765337442889,-500.0,0.00015694,2]
[398047756,1765337442899,-500.0,0.00015694,2]
[398047757,1765337442908,-500.0,0.00015694,2]
[398047758,1765337442917,-500.0,0.00015694,2]
[398047759,1765337442927,-506.1941338,0.00015694,2]
[398047760,1765337442938,-617.03,0.00015694,2]
[398047761,1765337442947,-500.0,0.00015694,2]
[398047762,1765337442957,-500.0,0.00015694,2]
[398047763,1765337442966,-500.0,0.00015694,2]
[398047764,1765337442976,-500.0,0.00015694,2]
[398047765,1765337442985,-500.0,0.00015694,2]
[398047766,1765337442994,-500.0,0.00015694,2]
[398047767,1765337443003,-500.0,0.00015694,2]
[398047768,1765337443012,-500.0,0.00015694,2]
[398047770,1765337443021,-500.0,0.00015694,2]
[398047772,1765337443031,-500.0,0.00015694,2]
[398047775,1765337443040,-500.0,0.00015694,2]
[398047776,1765337443049,-207.50398584,0.00015694,2]
[398047777,1765337443059,-609.37,0.00015694,2]
[398047778,1765337443068,-507.69,0.00015694,2]
[398047779,1765337443078,-500.0,0.00015694,2]
[398047780,1765337443087,-500.0,0.00015694,2]
[398047781,1765337443096,-162.28809427,0.00015694,2]
[398047782,1765337443106,-500.0,0.00015694,2]
[398047783,1765337443116,-500.0,0.00015694,2]
[398047784,1765337443125,-500.0,0.00015694,2]
[398047785,1765337443134,-500.0,0.00015694,2]
[398047786,1765337443144,-500.0,0.00015694,2]
[398047787,1765337443154,-500.0,0.00015694,2]
[398047788,1765337443164,-500.0,0.00015694,2]
[398047789,1765337443173,-500.0,0.00015694,2]
[398047790,1765337443183,-500.0,0.00015694,2]
[398047791,1765337443195,-500.0,0.00015694,2]
[398047792,1765337443205,-500.0,0.00015694,2]
[398047793,1765337443214,-500.0,0.00015694,2]
[398047794,1765337443223,-500.0,0.00015694,2]
[398047795,1765337443232,-500.0,0.00015694,2]
[398047796,1765337443242,-677.8,0.00015694,2]
[398047797,1765337443251,-500.0,0.00015694,2]
[398047798,1765337443260,-500.0,0.00015694,2]
[398047799,1765337443269,-500.0,0.00015694,2]
[398047800,1765337443278,-555.6141983,0.00015694,2]
[398047801,1765337443287,-500.0,0.00015694,2]
[398047802,1765337443297,-500.0,0.00015694,2]
[398047803,1765337443306,-500.0,0.00015694,2]
[398047804,1765337443315,-500.0,0.00015694,2]
[398047805,1765337443324,-535.905332,0.00015694,2]
[398047806,1765337443334,-500.0,0.00015694,2]
[398047807,1765337443344,-500.0,0.00015694,2]
[398047808,1765337443355,-1138.92,0.00015694,2]
[398047809,1765337443366,-500.0,0.00015694,2]
[398047810,1765337443375,-500.0,0.00015694,2]
[398047811,1765337443384,-500.0,0.00015694,2]
[398047812,1765337443394,-157.327421,0.00015694,2]
[398047813,1765337443403,-500.0,0.00015694,2]
[398047814,1765337443412,-521.13325826,0.00015694,2]
[398047815,1765337443422,-500.0,0.00015694,2]
[398047816,1765337443432,-512.84269054,0.00015694,2]
[398047817,1765337443442,-500.0,0.00015694,2]
[398047818,1765337443451,-1170.173949,0.00015694,2]
[398047819,1765337443460,-550.11,0.00015694,2]
[398047820,1765337443469,-500.0,0.00015694,2]
[398047821,1765337443479,-500.0,0.00015694,2]
[398047822,1765337443488,-500.0,0.00015694,2]
[398047823,1765337443497,-500.0,0.00015694,2]
[398047824,1765337443507,-1222.729435,0.00015694,2]
[398047825,1765337443516,-1049.13,0.00015694,2]
[398047826,1765337443526,-500.0,0.00015694,2]
[398047827,1765337443536,-159.497034,0.00015694,2]
[398047828,1765337443545,-500.0,0.00015694,2]
[398047829,1765337443555,-500.0,0.00015694,2]
[398047830,1765337443564,-500.0,0.00015694,2]
[398047831,1765337443574,-849.789509,0.00015694,2]
[398047832,1765337443583,-500.0,0.00015694,2]
[398047833,1765337443592,-864.04,0.00015694,2]
[398047834,1765337443601,-500.0,0.00015694,2]
[398047835,1765337443611,-500.0,0.00015694,2]
[398047836,1765337443620,-501.16602739,0.00015694,2]
[398047837,1765337443629,-500.0,0.00015694,2]
[398047838,1765337443638,-500.0,0.00015694,2]
[398047839,1765337443647,-647.17063683,0.00015694,2]
[398047840,1765337443656,-500.0,0.00015694,2]
[398047841,1765337443665,-500.0,0.00015694,2]
[398047842,1765337443675,-501.90606987,0.00015694,2]
[398047843,1765337443685,-500.0,0.00015694,2]
[398047844,1765337443694,-500.0,0.00015694,2]
[398047845,1765337443703,-500.0,0.00015694,2]
[398047846,1765337443713,-244.14756603,0.00015694,2]
[398047847,1765337443724,-568.91,0.00015694,2]
[398047848,1765337443736,-673.18,0.00015694,2]
[398047849,1765337443746,-738.3,0.00015694,2]
[398047850,1765337443756,-500.0,0.00015694,2]
[398047851,1765337443767,-500.0,0.00015694,2]
[398047852,1765337443777,-500.0,0.00015694,2]
[398047854,1765337443787,-500.0,0.00015694,2]
[398047855,1765337443796,-693.85,0.00015694,2]
[398047856,1765337443807,-500.0,0.00015694,2]
[398047857,1765337443817,-500.0,0.00015694,2]
[398047858,1765337443827,-500.0,0.00015694,2]
[398047859,1765337443837,-500.0,0.00015694,2]
[398047860,1765337443853,-500.0,0.00015694,2]
[398047861,1765337443863,-500.0,0.00015694,2]
[398047862,1765337443878,-500.0,0.00015694,2]
[398047863,1765337443888,-500.0,0.00015694,2]
[398047864,1765337443898,-850.16,0.00015694,2]
[398047865,1765337443908,-500.0,0.00015694,2]
[398047866,1765337443919,-589.4,0.00015694,2]
[398047867,1765337443929,-500.0,0.00015694,2]
[398047868,1765337443939,-518.05,0.00015694,2]
[398047869,1765337443950,-309.91966614,0.00015694,2]
[398047870,1765337443960,-500.0,0.00015694,2]
[398047871,1765337443970,-500.0,0.00015694,2]
[398047872,1765337443981,-500.0,0.00015694,2]
[398047873,1765337443990,-500.0,0.00015694,2]
[398047874,1765337443999,-500.0,0.00015694,2]
[398047875,1765337444009,-500.0,0.00015694,2]
[398047876,1765337444020,-801.61,0.00015694,2]
[398047877,1765337444030,-500.0,0.00015694,2]
[398047878,1765337444040,-499.39610479,0.00015694,2]
[398047879,1765337444051,-500.0,0.00015694,2]
[398047880,1765337444060,-500.0,0.00015694,2]
[398047881,1765337444069,-500.0,0.00015694,2]
[398047882,1765337444078,-504.75994141,0.00015694,2]
[398047883,1765337444087,-500.0,0.00015694,2]
[398047884,1765337444097,-500.0,0.00015694,2]
[398047885,1765337444107,-209.41202803,0.00015694,2]
[398047886,1765337444117,-500.0,0.00015694,2]
[398047887,1765337444126,-500.0,0.00015694,2]
[398047888,1765337444136,-500.67362482,0.00015694,2]
[398047889,1765337444145,-329.69377849,0.00015694,2]
[398047890,1765337444155,-514.36619034,0.00015694,2]
[398047891,1765337444165,-500.0,0.00015694,2]
[398047892,1765337444175,-500.0,0.00015694,2]
[398047893,1765337444184,-500.0,0.00015694,2]
[398047894,1765337444194,-500.0,0.00015694,2]
[398047895,1765337444203,-500.0,0.00015694,2]
[398047896,1765337444213,-490.73552751,0.00015694,2]
[398047897,1765337444222,-500.0,0.00015694,2]
[398047898,1765337444231,-552.41,0.00015694,2]
[398047899,1765337444240,-500.0,0.00015694,2]
[398047900,1765337444249,-500.0,0.00015694,2]
[398047901,1765337444258,-500.0,0.00015694,2]
[398047902,1765337444268,-500.0,0.00015694,2]
[398047903,1765337444277,-566.86,0.00015694,2]
[398047904,1765337444287,-582.78,0.00015694,2]
[398047905,1765337444296,-500.0,0.00015694,2]
[398047906,1765337444305,-502.73081394,0.00015694,2]
[398047907,1765337444315,-500.0,0.00015694,2]
[398047908,1765337444324,-500.0,0.00015694,2]
[398047909,1765337444334,-723.2,0.00015694,2]
[398047910,1765337444344,-500.0,0.00015694,2]
[398047911,1765337444353,-500.0,0.00015694,2]
[398047912,1765337444362,-502.3484585,0.00015694,2]
[398047913,1765337444371,-500.0,0.00015694,2]
[398047914,1765337444381,-500.0,0.00015694,2]
[398047915,1765337444392,-504.90232558,0.00015694,2]
[398047916,1765337444401,-500.0,0.00015694,2]
[398047917,1765337444411,-575.43343254,0.00015694,2]
[398047918,1765337444420,-500.0,0.00015694,2]
[398047919,1765337444430,-500.0,0.00015694,2]
[398047920,1765337444439,-500.0,0.00015694,2]
[398047921,1765337444449,-468.92106624,0.00015694,2]
[398047922,1765337444458,-500.0,0.00015694,2]
[398047923,1765337444467,-1075.31,0.00015694,2]
[398047924,1765337444476,-500.0,0.00015694,2]
[398047925,1765337444486,-500.0,0.00015694,2]
[398047926,1765337444495,-561.57,0.00015694,2]
[398047927,1765337444505,-500.0,0.00015694,2]
[398047928,1765337444514,-500.0,0.00015694,2]
[398047929,1765337444523,-500.0,0.00015694,2]
[398047930,1765337444533,-501.70366421,0.00015694,2]
[398047931,1765337444542,-500.0,0.00015694,2]
[398047932,1765337444551,-719.42,0.00015694,2]
[398047933,1765337444560,-500.0,0.00015694,2]
[398047934,1765337444569,-500.0,0.00015694,2]
[398047935,1765337444579,-500.0,0.00015694,2]
[398047936,1765337444588,-500.0,0.00015694,2]
[398047937,1765337444598,-1373.94,0.00015694,2]
[398047938,1765337444607,-747.4,0.00015694,2]
[398047939,1765337444616,-506.32181037,0.00015694,2]
[398047940,1765337444625,-592.58,0.00015694,2]
[398047941,1765337444634,-500.0,0.00015694,2]
[398047942,1765337444643,-500.0,0.00015694,2]
[398047943,1765337444653,-500.0,0.00015694,2]
[398047944,1765337444662,-500.0,0.00015694,2]
[398047945,1765337444671,-1563.11,0.00015694,2]
[398047946,1765337444681,-568.87,0.00015694,2]
[398047947,1765337444690,-583.63,0.00015694,2]
[398047948,1765337444699,-1291.12,0.00015694,2]
[398047949,1765337444708,-500.0,0.00015694,2]
[398047950,1765337444718,-500.0,0.00015694,2]
[398047951,1765337444730,-150.0,0.00015694,2]
[398047952,1765337444740,-150.0,0.00015694,2]
[398047953,1765337444749,-171.70937558,0.00015694,2]
[398047954,1765337444758,-500.0,0.00015694,2]
[398047955,1765337444768,-151.21541282,0.00015694,2]
[398047956,1765337444777,-500.0,0.00015694,2]
[398047957,1765337444786,-640.7767433,0.00015694,2]
[398047958,1765337444795,-500.0,0.00015694,2]
[398047959,1765337444804,-500.0,0.00015694,2]
[398047960,1765337444813,-500.0,0.00015694,2]
[398047961,1765337444823,-822.37,0.00015694,2]
[398047962,1765337444833,-500.0,0.00015694,2]
[398047963,1765337444844,-736.12,0.00015694,2]
[398047964,1765337444854,-500.0,0.00015694,2]
[398047965,1765337444864,-500.0,0.00015694,2]
[398047966,1765337444874,-500.0,0.00015694,2]
[398047967,1765337444883,-208.46344634,0.00015694,2]
[398047968,1765337444893,-500.0,0.00015694,2]
[398047969,1765337444903,-500.0,0.00015694,2]
[398047970,1765337444912,-500.0,0.00015694,2]
[398047971,1765337444921,-500.0,0.00015694,2]
[398047972,1765337444930,-904.95,0.00015694,2]
[398047973,1765337444940,-500.0,0.00015694,2]
[398047974,1765337444950,-500.0,0.00015694,2]
[398047975,1765337444960,-434.46069439,0.00015694,2]
[398047976,1765337444970,-500.0,0.00015694,2]
[398047977,1765337444979,-153.16483917,0.00015694,2]
[398047978,1765337444989,-500.0,0.00015694,2]
[398047979,1765337444999,-1165.73,0.00015694,2]
[398047980,1765337445010,-500.0,0.00015694,2]
[398047981,1765337445020,-500.0,0.00015694,2]
[398047982,1765337445031,-500.0,0.00015694,2]
[398047983,1765337445041,-500.0,0.00015694,2]
[398047984,1765337445051,-3000.42,0.00015694,2]
[398047985,1765337445060,-500.0,0.00015694,2]
[398047986,1765337445069,-1233.57,0.00015694,2]
[398047987,1765337445078,-500.0,0.00015694,2]
[398047988,1765337445087,-500.0,0.00015694,2]
[398047989,1765337445098,-500.0,0.00015694,2]
[398047990,1765337445107,-500.0,0.00015694,2]
[398047991,1765337445117,-500.0,0.00015694,2]
[398047992,1765337445128,-500.0,0.00015694,2]
[398047993,1765337445138,-500.0,0.00015694,2]
[398047994,1765337445148,-504.13571772,0.00015694,2]
[398047995,1765337445158,-500.0,0.00015694,2]
[398047996,1765337445168,-500.0,0.00015694,2]
[398047997,1765337445177,-500.0,0.00015694,2]
[398047998,1765337445187,-500.0,0.00015694,2]
[398047999,1765337445196,-1104.28,0.00015694,2]
[398048000,1765337445206,-500.0,0.00015694,2]
[398048001,1765337445215,-500.0,0.00015694,2]
[398048002,1765337445224,-569.5,0.00015694,2]
[398048003,1765337445234,-500.0,0.00015694,2]
[398048004,1765337445243,-500.0,0.00015694,2]
[398048005,1765337445252,-500.0,0.00015694,2]
[398048006,1765337445261,-500.0,0.00015694,2]
[398048007,1765337445271,-500.0,0.00015694,2]
[398048008,1765337445280,-500.0,0.00015694,2]
[398048009,1765337445290,-507.35187876,0.00015694,2]
[398048010,1765337445300,-500.0,0.00015694,2]
[398048011,1765337445309,-500.56166557,0.00015694,2]
[398048012,1765337445319,-500.0,0.00015694,2]
[398048013,1765337445328,-501.77557898,0.00015694,2]
[398048014,1765337445338,-500.0,0.00015694,2]
[398048015,1765337445348,-500.0,0.00015694,2]
[398048016,1765337445358,-500.0,0.00015694,2]
[398048017,1765337445367,-300.0,0.00015694,2]
[398048018,1765337445378,-963.05,0.00015694,2]
[398048019,1765337445388,-696.95,0.00015694,2]
[398048020,1765337445398,-500.0,0.00015694,2]
[398048021,1765337445408,-500.0,0.00015694,2]
[398048022,1765337445418,-500.0,0.00015694,2]
[398048023,1765337445428,-500.0,0.00015694,2]
[398048024,1765337445438,-500.0,0.00015694,2]
[398048025,1765337445448,-574.43,0.00015694,2]
[398048026,1765337445457,-500.0,0.00015694,2]
[398048027,1765337445467,-500.0,0.00015694,2]
[398048028,1765337445477,-500.0,0.00015694,2]
[398048029,1765337445487,-507.45070118,0.00015694,2]
[398048030,1765337445496,-500.0,0.00015694,2]
[398048031,1765337445506,-500.0,0.00015694,2]
[398048032,1765337445515,-151.0,0.00015694,2]
[398048033,1765337445524,-500.0,0.00015694,2]
[398048034,1765337445534,-700.31,0.00015694,2]
[398048035,1765337445543,-615.65083695,0.00015694,2]
[398048036,1765337445552,-667.98,0.00015694,2]
[398048037,1765337445562,-500.0,0.00015694,2]
[398048038,1765337445571,-500.14502068,0.00015694,2]
[398048039,1765337445581,-500.0,0.00015694,2]
[398048040,1765337445590,-500.0,0.00015694,2]
[398048041,1765337445599,-815.48,0.00015694,2]
[398048042,1765337445609,-563.29,0.00015694,2]
[398048043,1765337445618,-502.90033639,0.00015694,2]
[398048044,1765337445627,-500.0,0.00015694,2]
[398048045,1765337445636,-344.59637553,0.00015694,2]
[398048046,1765337445646,-500.0,0.00015694,2]
[398048047,1765337445655,-500.0,0.00015694,2]
[398048048,1765337445664,-501.12089019,0.00015694,2]
[398048049,1765337445674,-500.0,0.00015694,2]
[398048050,1765337445683,-500.0,0.00015694,2]
[398048051,1765337445693,-500.0,0.00015694,2]
[398048052,1765337445702,-500.0,0.00015694,2]
[398048053,1765337445711,-2348.98,0.00015694,2]
[398048054,1765337445720,-500.0,0.00015694,2]
[398048055,1765337445734,-603.65,0.00015694,2]
[398048056,1765337445920,-500.0,0.00015694,2]
[398048057,1765337445931,-500.0,0.00015694,2]
[398048058,1765337445940,-500.0,0.00015694,2]
[398048059,1765337445949,-500.0,0.00015694,2]
[398048060,1765337445958,-643.92403092,0.00015694,2]
[398048061,1765337445968,-500.0,0.00015694,2]
[398048062,1765337445980,-500.0,0.00015694,2]
[398048063,1765337445992,-500.0,0.00015694,2]
[398048064,1765337446002,-500.0,0.00015694,2]
[398048065,1765337446012,-500.0,0.00015694,2]
[398048066,1765337446022,-701.91,0.00015694,2]
[398048067,1765337446032,-500.0,0.00015694,2]
[398048068,1765337446043,-500.0,0.00015694,2]
[398048069,1765337446052,-500.0,0.00015694,2]
[398048070,1765337446062,-500.0,0.00015694,2]
[398048071,1765337446071,-500.0,0.00015694,2]
[398048072,1765337446080,-567.67,0.00015694,2]
[398048073,1765337446089,-500.0,0.00015694,2]
[398048074,1765337446101,-717.87,0.00015694,2]
[398048075,1765337446111,-500.0,0.00015694,2]
[398048076,1765337446122,-500.0,0.00015694,2]
[398048077,1765337446132,-500.0,0.00015694,2]
[398048078,1765337446141,-500.0,0.00015694,2]
[398048079,1765337446150,-500.0,0.00015694,2]
[398048080,1765337446160,-500.0,0.00015694,2]
[398048081,1765337446169,-1321.46,0.00015694,2]
[398048082,1765337446179,-500.0,0.00015694,2]
[398048083,1765337446188,-500.0,0.00015694,2]
[398048084,1765337446198,-500.0,0.00015694,2]
[398048085,1765337446207,-500.88468452,0.00015694,2]
[398048086,1765337446217,-1859.47,0.00015694,2]
[398048087,1765337446227,-521.81,0.00015694,2]
[398048088,1765337446237,-500.0,0.00015694,2]
[398048089,1765337446246,-500.0,0.00015694,2]
[398048090,1765337446256,-500.0,0.00015694,2]
[398048091,1765337446265,-503.47117216,0.00015694,2]
[398048092,1765337446285,-801.17,0.00015694,2]
[398048093,1765337446294,-500.0,0.00015694,2]
[398048094,1765337446304,-500.0,0.00015694,2]
[398048095,1765337446313,-500.0,0.00015694,2]
[398048096,1765337446322,-500.0,0.00015694,2]
[398048097,1765337446332,-500.0,0.00015694,2]
[398048098,1765337446342,-839.81,0.00015694,2]
[398048099,1765337446352,-500.0,0.00015694,2]
[398048100,1765337446369,-646.69,0.00015694,2]
[398048101,1765337446379,-500.0,0.00015694,2]
[398048102,1765337446389,-665.06,0.00015694,2]
[398048103,1765337446400,-500.0,0.00015694,2]
[398048105,1765337446410,-503.84476281,0.00015694,2]
[398048106,1765337446420,-500.0,0.00015694,2]
[398048107,1765337446430,-500.0,0.00015694,2]
[398048108,1765337446438,-500.0,0.00015694,2]
[398048109,1765337446448,-5073.62,0.00015694,2]
[398048110,1765337446457,-651.76,0.00015694,2]
[398048111,1765337446467,-500.0,0.00015694,2]
[398048112,1765337446477,-500.0,0.00015694,2]
[398048113,1765337446487,-523.75,0.00015694,2]
[398048114,1765337446496,-500.0,0.00015694,2]
[398048115,1765337446506,-500.0,0.00015694,2]
[398048116,1765337446516,-500.0,0.00015694,2]
[398048117,1765337446527,-500.0,0.00015694,2]
[398048118,1765337446536,-500.0,0.00015694,2]
[398048119,1765337446546,-500.0,0.00015694,2]
[398048120,1765337446556,-500.0,0.00015694,2]
[398048121,1765337446566,-150.0,0.00015694,2]
[398048122,1765337446575,-500.0,0.00015694,2]
[398048123,1765337446585,-500.0,0.00015694,2]
[398048124,1765337446595,-150.0,0.00015694,2]
[398048125,1765337446604,-150.0,0.00015694,2]
[398048126,1765337446614,-500.0,0.00015694,2]
[398048127,1765337446624,-500.0,0.00015694,2]
[398048128,1765337446633,-157.32829514,0.00015694,2]
[398048129,1765337446643,-500.0,0.00015694,2]
[398048130,1765337446652,-500.0,0.00015694,2]
[398048131,1765337446663,-150.0,0.00015694,2]
[398048132,1765337446672,-512.44,0.00015694,2]
[398048133,1765337446682,-500.98640702,0.00015694,2]
[398048134,1765337446692,-150.0,0.00015694,2]
[398048135,1765337446702,-234.35368219,0.00015694,2]
[398048136,1765337446712,-500.0,0.00015694,2]
[398048137,1765337446721,-150.0,0.00015694,2]
[398048138,1765337446735,-500.0,0.00015694,2]
[398048139,1765337446745,-150.0,0.00015694,2]
[398048140,1765337446755,-503.36759017,0.00015694,2]
[398048141,1765337446764,-500.0,0.00015694,2]
[398048142,1765337446774,-500.0,0.00015694,2]
[398048143,1765337446783,-500.0,0.00015694,2]
[398048144,1765337446793,-500.0,0.00015694,2]
[398048145,1765337446802,-909.95,0.00015694,2]
[398048146,1765337446812,-500.0,0.00015694,2]
[398048147,1765337446821,-500.0,0.00015694,2]
[398048148,1765337446835,-500.0,0.00015694,2]
[398048149,1765337446845,-500.0,0.00015694,2]
[398048150,1765337446855,-500.0,0.00015694,2]
[398048151,1765337446864,-500.0,0.00015694,2]
[398048152,1765337446874,-500.0,0.00015694,2]
[398048153,1765337446884,-500.0,0.00015694,2]
[398048154,1765337446894,-720.92,0.00015694,2]
[398048155,1765337446904,-500.0,0.00015694,2]
[398048156,1765337446914,-807.01,0.00015694,2]
[398048157,1765337446923,-500.0,0.00015694,2]
[398048158,1765337446934,-644.32,0.00015694,2]
[398048159,1765337446943,-500.0,0.00015694,2]
[398048160,1765337446954,-1386.32,0.00015694,2]
[398048161,1765337446964,-500.0,0.00015694,2]
[398048162,1765337446973,-500.0,0.00015694,2]
[398048163,1765337446983,-500.0,0.00015694,2]
[398048164,1765337446992,-500.0,0.00015694,2]
[398048165,1765337447002,-500.0,0.00015694,2]
[398048166,1765337447012,-609.19,0.00015694,2]
[398048167,1765337447022,-500.0,0.00015694,2]
[398048168,1765337447032,-500.0,0.00015694,2]
[398048169,1765337447042,-500.0,0.00015694,2]
[398048170,1765337447052,-500.0,0.00015694,2]
[398048171,1765337447062,-500.0,0.00015694,2]
[398048172,1765337447071,-500.0,0.00015694,2]
[398048173,1765337447081,-932.96,0.00015694,2]
[398048174,1765337447091,-500.0,0.00015694,2]
[398048175,1765337447101,-500.0,0.00015694,2]
[398048176,1765337447110,-500.0,0.00015694,2]
[398048177,1765337447119,-500.0,0.00015694,2]
[398048178,1765337447129,-501.62769746,0.00015694,2]
[398048179,1765337447139,-500.0,0.00015694,2]
[398048180,1765337447148,-509.85654545,0.00015694,2]
[398048181,1765337447159,-500.0,0.00015694,2]
[398048182,1765337447168,-500.0,0.00015694,2]
[398048183,1765337447178,-753.65,0.00015694,2]
[398048184,1765337447189,-1161.19,0.00015694,2]
[398048185,1765337447202,-500.0,0.00015694,2]
[398048186,1765337447213,-1166.17,0.00015694,2]
[398048187,1765337447223,-500.0,0.00015694,2]
[398048188,1765337447233,-500.0,0.00015694,2]
[398048189,1765337447243,-387.54405727,0.00015694,2]
[398048190,1765337447252,-404.34764437,0.00015694,2]
[398048191,1765337447263,-500.0,0.00015694,2]
[398048192,1765337447272,-500.0,0.00015694,2]
[398048193,1765337447282,-500.0,0.00015694,2]
[398048194,1765337447292,-500.0,0.00015694,2]
[398048195,1765337447302,-500.0,0.00015694,2]
[398048196,1765337447311,-501.01848781,0.00015694,2]
[398048197,1765337447322,-440.53931249,0.00015694,2]
[398048198,1765337447331,-645.1,0.00015694,2]
[398048199,1765337447341,-500.0,0.00015694,2]
[398048200,1765337447351,-500.0,0.00015694,2]
[398048201,1765337447361,-500.0,0.00015694,2]
[398048202,1765337447370,-457.46497538,0.00015694,2]
[398048203,1765337447380,-500.0,0.00015694,2]
[398048204,1765337447390,-500.0,0.00015694,2]